Workbook

Sheet Отчёт
J1: Приложение 6 к договору на электроснабжение и потребление электрической энергии от 19/08. № 54365
D2: ОТЧЕТ
D3: о фактическом потреблении электроэнергии Осиповичским ОАО "Свислочь"
D4: за месяц | G4: ноябрь | H4: 2015 | I4: год | O4: =MATCH($G$4, Месяцы, 0) + MATCH($H$4, 'по месяцам'!$A:$A, 0) - 1 -> 14
B6: Название объекта | C6: Адрес объекта | D6: тип транс-ров тока | E6: Номер прибора учета | F6: Место расположения | G6: Показания счетчика | J6: Потребленная электроэнергия (кВт) | K6: Потери в | N6: =MATCH($G$4, Месяцы, 0) + MATCH($H$4, 'по месяцам'!$A:$A, 0) - 1 -> 14
G7: Коэффициент трансформации | H7: Предыдущее | I7: Последнее | K7: трансформа торе | L7: сети
B8: ОАО "Свислочь" | C8: Осиповичский р-н. д.Вязье. Улица Южная, 28 | D8: ТОП-0,66 0,5 У3 | E8: 679302 | F8: ТП 2141 мехдвор | G8: =INDEX('по месяцам'!$E:$E, $O$4) -> 10 | H8: =INDEX('по месяцам'!$D:$D, $O$4-1) -> 7650 | I8: =INDEX('по месяцам'!$D:$D, $O$4) -> 7700 | J8: =INDEX('по месяцам'!$C:$C, $O$4) -> 500 | K8: =IF(J8<=0,"Введите данные","") ->  | L8: =K8 -> 
D9: ТОП-0,66 0,5 У3 | E9: 442846 | F9: ТП 2434 насосная | G9: ='по месяцам'!L11 -> 10 | H9: =INDEX('по месяцам'!$R:$R, $O$4-1) -> 5300 | I9: =INDEX('по месяцам'!$R:$R, $O$4) -> 5300 | J9: =INDEX('по месяцам'!$Q:$Q, $O$4) -> 0 | K9: =IF(J9<0,"Введите данные","") ->  | L9: =K9 -> 
D10: ТОП-0,66 0,5 У3 | E10: 119617 | F10: ТП 2390 скважина | G10: ='по месяцам'!L12 -> 10 | H10: =INDEX('по месяцам'!$K:$K, $O$4-1) -> 3865 | I10: =INDEX('по месяцам'!$K:$K, $O$4) -> 3895 | J10: =INDEX('по месяцам'!$J:$J, $O$4) -> 300 | K10: =IF(J10<0,"Введите данные","") ->  | L10: =K10 -> 
D11: Всего потреблено электроэнергии: | J11: =SUM(J8:J10) -> 800 | K11: кВт | L11: =IF(K11<0,"Введите данные","") -> 
C17: Руководитель предприятия (организации) | J17: .
K22: =IF(J22<0,"Введите данные","") ->  | L22: =K22 -> 
B23: Месяц | D23: год | K23: =IF(J23<0,"Введите данные","") ->  | L23: =K23 -> 
B24: предыдущее | D24: последнее

Sheet по месяцам
C1: ТП 2141 мехдвор | J1: ТП 2390 скважина | Q1: ТП 2434 насосная | X1: Лимит на год | AE1: Прокопчик И.Л.
C2: 679302 | D2: показания счетчика | J2: 119617 | K2: показания счетчика | Q2: 442846 | R2: показания счетчика | Y2: показания счетчика | AE2: 2013
C3: расход (кВт) | D3: 5860 | E3: Коэффициент трансформации | J3: расход (кВт) | K3: 3530 | L3: Коэффициент трансформации | Q3: расход (кВт) | R3: 5020 | S3: Коэффициент трансформации | X3: расход (кВт) | Y3: Потреблено | Z3: Выделено
A4: 2015 | B4: январь | C4: =(D4-D3)*E4 -> 2900 | D4: 6150 | E4: 10 | H4: 2015 | I4: январь | J4: =(K4-K3)*L4 -> 900 | K4: 3620 | L4: 10 | O4: 2015 | P4: январь | Q4: =(R4-R3)*S4 -> 1200 | R4: 5140 | S4: 10 | V4: 2015 | W4: январь | X4: =(Y4-Y3)*Z4 ->  | Y4: 0 | Z4: 1 | AA4: I квартал
B5: февраль | C5: 3000 | D5: 6450 | E5: 10 | I5: февраль | J5: 700 | K5: 3690 | L5: 10 | P5: февраль | Q5: 1000 | R5: 5240 | S5: 10 | W5: февраль | X5: 0 | Y5: 0 | Z5: 1
B6: март | C6: 2000 | D6: 6650 | E6: 10 | I6: март | J6: 600 | K6: 3750 | L6: 10 | P6: март | Q6: 600 | R6: 5300 | S6: 10 | W6: март | X6: 0 | Y6: 0 | Z6: 1
B7: апрель | C7: 2000 | D7: 6850 | E7: 10 | I7: апрель | J7: 500 | K7: 3800 | L7: 10 | P7: апрель | Q7: 0 | R7: 5300 | S7: 10 | W7: апрель | X7: 0 | Y7: 0 | Z7: 1 | AA7: II квартал
B8: май | C8: 1500 | D8: 7000 | E8: 10 | I8: май | J8: 100 | K8: 3810 | L8: 10 | P8: май | Q8: 0 | R8: 5300 | S8: 10 | W8: май | X8: 0 | Y8: 0 | Z8: 1
B9: июнь | C9: 1000 | D9: 7100 | E9: 10 | I9: июнь | J9: 100 | K9: 3820 | L9: 10 | P9: июнь | Q9: 0 | R9: 5300 | S9: 10 | W9: июнь | X9: 0 | Y9: 0 | Z9: 1
B10: июль | C10: 2000 | D10: 7300 | E10: 10 | I10: июль | J10: 100 | K10: 3830 | L10: 10 | P10: июль | Q10: 0 | R10: 5300 | S10: 10 | W10: июль | X10: 0 | Y10: 0 | Z10: 1 | AA10: III квартал
B11: август | C11: 1500 | D11: 7450 | E11: 10 | I11: август | J11: 150 | K11: 3845 | L11: 10 | P11: август | Q11: 0 | R11: 5300 | S11: 10 | W11: август | X11: 0 | Y11: 0 | Z11: 1
B12: сентябь | C12: 1800 | D12: 7630 | E12: 10 | F12: 7630 | I12: сентябь | J12: 60 | K12: 3851 | L12: 10 | M12: 3851 | P12: сентябь | Q12: 0 | R12: 5300 | S12: 10 | T12: 5300 | W12: сентябь | X12: 0 | Y12: 0 | Z12: 1
B13: октябрь | C13: 200 | D13: 7650 | E13: 10 | F13: 7630 | I13: октябрь | J13: 140 | K13: 3865 | L13: 10 | M13: 3851 | P13: октябрь | Q13: 0 | R13: 5300 | S13: 10 | T13: 5300 | W13: октябрь | X13: 0 | Y13: 0 | Z13: 1 | AA13: IV квартал
B14: ноябрь | C14: 500 | D14: 7700 | E14: 10 | F14: 7640 | I14: ноябрь | J14: 300 | K14: 3895 | L14: 10 | M14: 3811 | P14: ноябрь | Q14: 0 | R14: 5300 | S14: 10 | T14: 5129 | W14: ноябрь | X14: 0 | Y14: 0 | Z14: 1
B15: декабрь | C15: -77000 | E15: 10 | I15: декабрь | J15: -38950 | K15: 0 | L15: 10 | P15: декабрь | Q15: -53000 | S15: 10 | W15: декабрь | X15: 0 | Y15: 0 | Z15: 1
A16: 2016 | B16: январь | C16: 0 | E16: 10 | H16: 2016 | I16: январь | J16: 0 | K16: 0 | L16: 10 | O16: 2016 | P16: январь | Q16: 0 | S16: 10 | V16: 2016 | W16: январь | X16: 0 | Y16: 0 | Z16: 1 | AA16: I квартал
B17: февраль | C17: 0 | E17: 10 | I17: февраль | J17: 0 | K17: 0 | L17: 10 | P17: февраль | Q17: 0 | S17: 10 | W17: февраль | X17: 0 | Y17: 0 | Z17: 1
B18: март | C18: 0 | E18: 10 | I18: март | J18: 0 | K18: 0 | L18: 10 | P18: март | Q18: 0 | S18: 10 | W18: март | X18: 0 | Y18: 0 | Z18: 1
B19: апрель | C19: 0 | E19: 10 | I19: апрель | J19: 0 | L19: 10 | P19: апрель | Q19: 0 | S19: 10 | W19: апрель | X19: 0 | Z19: 1 | AA19: II квартал
B20: май | C20: 0 | E20: 10 | I20: май | J20: 0 | L20: 10 | P20: май | Q20: 0 | S20: 10 | W20: май | X20: 0 | Z20: 1
B21: июнь | C21: 0 | E21: 10 | I21: июнь | J21: 0 | L21: 10 | P21: июнь | Q21: 0 | S21: 10 | W21: июнь | X21: 0 | Z21: 1
B22: июль | C22: 0 | E22: 10 | I22: июль | J22: 0 | L22: 10 | P22: июль | Q22: 0 | S22: 10 | W22: июль | X22: 0 | Z22: 1 | AA22: III квартал
B23: август | C23: 0 | E23: 10 | I23: август | J23: 0 | L23: 10 | P23: август | Q23: 0 | S23: 10 | W23: август | X23: 0 | Z23: 1
B24: сентябь | C24: 0 | E24: 10 | I24: сентябь | J24: 0 | L24: 10 | P24: сентябь | Q24: 0 | S24: 10 | W24: сентябь | X24: 0 | Z24: 1
B25: октябрь | C25: 0 | E25: 10 | I25: октябрь | J25: 0 | L25: 10 | P25: октябрь | Q25: 0 | S25: 10 | W25: октябрь | X25: 0 | Z25: 1 | AA25: IV квартал
B26: ноябрь | C26: 0 | E26: 10 | I26: ноябрь | J26: 0 | L26: 10 | P26: ноябрь | Q26: 0 | S26: 10 | W26: ноябрь | X26: 0 | Z26: 1
B27: декабрь | C27: 0 | E27: 10 | I27: декабрь | J27: 0 | L27: 10 | P27: декабрь | Q27: 0 | S27: 10 | W27: декабрь | X27: 0 | Z27: 1
A28: 2017 | B28: январь | C28: 0 | E28: 10 | H28: 2017 | I28: январь | J28: 0 | L28: 10 | O28: 2017 | P28: январь | Q28: 0 | S28: 10 | V28: 2017 | W28: январь | X28: 0 | Z28: 1 | AA28: I квартал
B29: февраль | C29: 0 | E29: 10 | I29: февраль | J29: 0 | L29: 10 | P29: февраль | Q29: 0 | S29: 10 | W29: февраль | X29: 0 | Z29: 1
B30: март | C30: 0 | E30: 10 | I30: март | J30: 0 | L30: 10 | P30: март | Q30: 0 | S30: 10 | W30: март | X30: 0 | Z30: 1
B31: апрель | C31: 0 | E31: 10 | I31: апрель | J31: 0 | L31: 10 | P31: апрель | Q31: 0 | S31: 10 | W31: апрель | X31: 0 | Z31: 1 | AA31: II квартал
B32: май | C32: 0 | E32: 10 | I32: май | J32: 0 | L32: 10 | P32: май | Q32: 0 | S32: 10 | W32: май | X32: 0 | Z32: 1
B33: июнь | C33: 0 | E33: 10 | I33: июнь | J33: 0 | L33: 10 | P33: июнь | Q33: 0 | S33: 10 | W33: июнь | X33: 0 | Z33: 1
B34: июль | C34: 0 | E34: 10 | I34: июль | J34: 0 | L34: 10 | P34: июль | Q34: 0 | S34: 10 | W34: июль | X34: 0 | Z34: 1 | AA34: III квартал
B35: август | C35: 0 | E35: 10 | I35: август | J35: 0 | L35: 10 | P35: август | Q35: 0 | S35: 10 | W35: август | X35: 0 | Z35: 1
B36: сентябь | C36: 0 | E36: 10 | I36: сентябь | J36: 0 | L36: 10 | P36: сентябь | Q36: 0 | S36: 10 | W36: сентябь | X36: 0 | Z36: 1
B37: октябрь | C37: 0 | E37: 10 | I37: октябрь | J37: 0 | L37: 10 | P37: октябрь | Q37: 0 | S37: 10 | W37: октябрь | X37: 0 | Z37: 1 | AA37: IV квартал
B38: ноябрь | C38: 0 | E38: 10 | I38: ноябрь | J38: 0 | L38: 10 | P38: ноябрь | Q38: 0 | S38: 10 | W38: ноябрь | X38: 0 | Z38: 1
B39: декабрь | C39: 0 | E39: 10 | I39: декабрь | J39: 0 | L39: 10 | P39: декабрь | Q39: 0 | S39: 10 | W39: декабрь | X39: 0 | Z39: 1
